fUST/lending_fUST_20251011
["ID","MTS","AMOUNT","RATE_DAILY","PERIOD"]
[390889810,1760195859753,195.06,0.0002062,2]
[390889811,1760195860176,292.59,0.00022338,2]
[390889812,1760195860663,390.12,0.00024057,2]
[390889815,1760195945440,150.0,0.00018894,2]
[390889816,1760195945876,168.9,0.00020612,2]
[390889817,1760195946399,253.35,0.0002233,2]
[390889818,1760195946869,337.8,0.00024047,2]
[390889823,1760196012440,1024.123344,0.00013699,2]
[390889824,1760196012754,1024.123344,0.00020187,2]
[390889827,1760196025579,150.0,0.00018882,2]
[390889828,1760196026013,160.1,0.00020599,2]
[390889829,1760196026438,240.15,0.00022316,2]
[390889830,1760196026898,320.2,0.00024032,2]
[390889831,1760196035181,336.51873,0.00027,120]
[390889832,1760196079678,1985.9914362,0.00024285,2]
[390889833,1760196113127,150.0,0.00018875,2]
[390889834,1760196113567,150.0,0.00020591,2]
[390889835,1760196114008,206.92,0.00022306,2]
[390889836,1760196114418,275.89,0.00024022,2]
[390889837,1760196193478,150.0,0.00018813,2]
[390889838,1760196194120,150.0,0.00020523,2]
[390889839,1760196194376,177.03,0.00022233,2]
[390889840,1760196194826,236.04,0.00023944,2]
[390889841,1760196195031,210.5397628,0.0002356,2]
[390889843,1760196239773,728.0,0.00023639,2]
[390889844,1760196272191,150.0,0.00018837,2]
[390889845,1760196272613,150.0,0.00020549,2]
[390889846,1760196273053,150.0,0.00022262,2]
[390889847,1760196273389,728.0,0.00024222,2]
[390889848,1760196273527,199.74,0.00023974,2]
[390889849,1760196286968,728.0,0.00023872,2]
[390889850,1760196293226,728.0,0.0002417,2]
[390889851,1760196335724,1572.3116027,0.00024285,2]
[390889852,1760196347772,150.0,0.00018839,2]
[390889853,1760196348152,150.0,0.00020552,2]
[390889854,1760196348574,150.0,0.00022264,2]
[390889855,1760196349017,166.66,0.00023977,2]
[390889860,1760196398933,1474.20145987,0.00024292,2]
[390889861,1760196421916,150.0,0.0001883,2]
[390889862,1760196422352,150.0,0.00020542,2]
[390889863,1760196422837,150.0,0.00022254,2]
[390889864,1760196423332,150.0,0.00023966,2]
[390889865,1760196446462,1000.0,0.00023555,2]
[390889871,1760196467714,4736.83693743,0.00018,2]
[390889872,1760196467742,10000.01,0.00018,2]
[390889873,1760196467768,10000.01,0.00018,2]
[390889874,1760196467795,10000.01,0.00018,2]
[390889875,1760196467822,10000.01,0.00018,2]
[390889876,1760196467849,10000.01,0.00018,2]
[390889877,1760196467875,10000.01,0.00018,2]
[390889878,1760196467901,10000.01,0.00018,2]
[390889879,1760196467926,3898.63299981,0.00018,2]
[390889880,1760196480612,5000.0,0.00024434,2]
[390889881,1760196489164,1101.37700019,0.00024352,2]
[390889882,1760196489204,1992.62299981,0.00024352,2]
[390889883,1760196492354,3094.0,0.00024169,2]
[390889884,1760196494124,150.0,0.00018837,2]
[390889885,1760196494201,4763.38700019,0.00018,2]
[390889886,1760196494229,250.61299981,0.00018,2]
[390889887,1760196494616,150.0,0.0002055,2]
[390889888,1760196495029,166.31,0.00022262,2]
[390889889,1760196495708,221.74,0.00023975,2]
[390889890,1760196501094,2110.84919684,0.000176,2]
[390889891,1760196503713,5000.0,0.00024434,2]
[390889893,1760196508002,372909.08808203,0.00030136,60]
[390889894,1760196510150,2889.16080316,0.00017,2]
[390889895,1760196510178,10000.01,0.00017,2]
[390889896,1760196510206,10000.01,0.00017,2]
[390889897,1760196510232,4222.64956393,0.00017,2]
[390889898,1760196510702,420.05512422,0.00022,5]
[390889899,1760196511881,5357.30531185,0.0002,20]
[390889900,1760196511910,10000.01,0.0002,20]
[390889901,1760196511938,10000.01,0.0002,20]
[390889902,1760196511966,3576.25985384,0.0002,20]
[390889903,1760196512728,10000.01,0.00015,2]
[390889904,1760196513152,10000.01,0.0002,2]
[390889905,1760196513179,1791.43757306,0.0002,2]
[390889906,1760196513536,1372.87739299,0.0002061,2]
[390889909,1760196516744,150.999999,0.0002,120]
[390889915,1760196520646,5183.3,0.00030136,120]
[390889916,1760196522110,3861.04243163,0.00024142,2]
[390889917,1760196572811,150.0,0.00019091,2]
[390889918,1760196573746,150.0,0.00020826,2]
[390889919,1760196574301,150.0,0.00022562,2]
[390889920,1760196574742,186.72,0.00024297,2]
[390889921,1760196605004,200.0,0.00024434,2]
[390890007,1760196638726,-3094.0,0.00024434,2]
[390890009,1760196638735,-231.2380343,0.00024434,2]
[390890011,1760196638745,-225.84437853,0.00024456,7]
[390890013,1760196638755,-160.55543819,0.000245,2]
[390890015,1760196638765,-1200.0,0.00024551,2]
[390890017,1760196638774,-300.0,0.00024552,2]
[390890019,1760196638784,-300.0,0.00024552,2]
[390890021,1760196638794,-300.0,0.00024552,2]
[390890023,1760196638804,-300.0,0.00024552,2]
[390890025,1760196638813,-300.0,0.00024552,2]
[390890027,1760196638822,-160.0,0.00024553,2]
[390890029,1760196638832,-1200.0,0.00024553,2]
[390890031,1760196638841,-50000.0,0.00024554,2]
[390890033,1760196638850,-156.9342796,0.00024556,2]
[390890035,1760196638860,-2609.37557469,0.00024557,3]
[390890037,1760196638870,-160.0,0.00024557,3]
[390890039,1760196638879,-298.08050243,0.00024557,3]
[390890041,1760196638889,-500.0,0.00024573,2]
[390890043,1760196638899,-500.0,0.00024573,2]
[390890045,1760196638908,-500.0,0.00024573,2]
[390890047,1760196638918,-500.0,0.00024573,2]
[390890049,1760196638927,-500.0,0.00024573,2]
[390890051,1760196638937,-500.0,0.00024573,2]
[390890053,1760196638947,-500.0,0.00024573,2]
[390890055,1760196638957,-617.18139601,0.00024573,2]
[390890057,1760196638966,-500.0,0.00024573,2]
[390890059,1760196638975,-500.0,0.00024573,2]
[390890061,1760196638984,-500.0,0.00024573,2]
[390890063,1760196638994,-500.0,0.00024573,2]
[390890065,1760196639003,-500.0,0.00024573,2]
[390890067,1760196639013,-163.44082459,0.00024573,2]
[390890069,1760196639023,-500.0,0.00024573,2]
[390890071,1760196639032,-500.0,0.00024573,2]
[390890073,1760196639041,-500.0,0.00024573,2]
[390890075,1760196639051,-500.0,0.00024573,2]
[390890077,1760196639060,-500.0,0.00024573,2]
[390890079,1760196639070,-500.0,0.00024573,2]
[390890081,1760196639079,-612.94982994,0.00024573,2]
[390890083,1760196639090,-500.0,0.00024573,2]
[390890086,1760196639101,-728.0,0.00024592,2]
[390890087,1760196639111,-1062.24,0.00024647,3]
[390890089,1760196639120,-531.12,0.00024647,3]
[390890091,1760196639132,-265.56,0.00024647,3]
[390890093,1760196639143,-796.72,0.00024647,3]
[390890095,1760196639153,-603.01028685,0.00024656,2]
[390890097,1760196639163,-500.0,0.00024656,2]
[390890099,1760196639173,-500.0,0.00024656,2]
[390890101,1760196639183,-500.0,0.00024656,2]
[390890103,1760196639194,-500.0,0.00024656,2]
[390890105,1760196639204,-500.0,0.00024656,2]
[390890107,1760196639214,-625.9154487,0.00024656,2]
[390890109,1760196639224,-500.0,0.00024656,2]
[390890111,1760196639233,-500.0,0.00024656,2]
[390890113,1760196639243,-500.0,0.00024656,2]
[390890115,1760196639253,-500.0,0.00024656,2]
[390890117,1760196639263,-500.0,0.00024656,2]
[390890119,1760196639280,-500.0,0.00024656,2]
[390890121,1760196639289,-500.0,0.00024656,2]
[390890122,1760196639299,-500.0,0.00024656,2]
[390890124,1760196639309,-500.0,0.00024656,2]
[390890126,1760196639320,-500.0,0.00024656,2]
[390890127,1760196639329,-500.0,0.00024656,2]
[390890129,1760196639339,-151.77,0.00024656,2]
[390890131,1760196639355,-500.0,0.00024657,9]
[390890133,1760196639369,-500.0,0.00024657,9]
[390890135,1760196639379,-500.0,0.00024657,9]
[390890136,1760196639392,-500.0,0.00024657,9]
[390890137,1760196639403,-500.0,0.00024657,9]
[390890138,1760196639414,-315.12,0.00024657,9]
[390890139,1760196639424,-523.17940396,0.00024657,9]
[390890140,1760196639434,-501.64552582,0.00024657,9]
[390890141,1760196639445,-500.0,0.00024657,9]
[390890142,1760196639456,-500.0,0.00024657,9]
[390890143,1760196639466,-500.0,0.00024657,9]
[390890144,1760196639475,-500.0,0.00024657,9]
[390890145,1760196639485,-500.0,0.00024657,9]
[390890146,1760196639495,-500.0,0.00024657,9]
[390890147,1760196639505,-500.0,0.00024657,9]
[390890148,1760196639514,-263.53,0.00024657,9]
[390890149,1760196639524,-500.0,0.00024657,9]
[390890150,1760196639534,-521.7036161,0.00024657,9]
[390890151,1760196639544,-500.0,0.00024657,9]
[390890152,1760196639554,-500.0,0.00024657,9]
[390890153,1760196639563,-500.0,0.00024657,9]
[390890154,1760196639573,-500.0,0.00024657,9]
[390890155,1760196639583,-500.0,0.00024657,9]
[390890156,1760196639592,-500.0,0.00024657,9]
[390890157,1760196639602,-500.0,0.00024657,9]
[390890158,1760196639611,-500.0,0.00024657,9]
[390890159,1760196639621,-500.0,0.00024657,9]
[390890160,1760196639630,-500.0,0.00024657,9]
[390890161,1760196639641,-500.0,0.00024657,9]
[390890162,1760196639651,-500.0,0.00024657,9]
[390890163,1760196639661,-500.0,0.00024657,9]
[390890164,1760196639671,-500.0,0.00024657,9]
[390890165,1760196639680,-500.0,0.00024657,9]
[390890166,1760196639689,-500.0,0.00024657,9]
[390890167,1760196639699,-500.0,0.00024657,9]
[390890168,1760196639709,-500.0,0.00024657,9]
[390890169,1760196639719,-500.0,0.00024657,9]
[390890170,1760196639729,-371.82,0.00024657,9]
[390890171,1760196639738,-500.0,0.00024657,9]
[390890172,1760196639748,-500.0,0.00024657,9]
[390890173,1760196639759,-500.0,0.00024657,9]
[390890174,1760196639769,-500.0,0.00024657,9]
[390890175,1760196639779,-500.0,0.00024657,9]
[390890176,1760196639788,-500.0,0.00024657,9]
[390890177,1760196639798,-500.0,0.00024657,9]
[390890178,1760196639808,-500.0,0.00024657,9]
[390890179,1760196639819,-500.0,0.00024657,9]
[390890180,1760196639828,-216.64,0.00024657,9]
[390890181,1760196639839,-500.0,0.00024657,9]
[390890182,1760196639848,-500.0,0.00024657,9]
[390890183,1760196639858,-556.35,0.00024657,9]
[390890184,1760196639869,-500.0,0.00024657,9]
[390890185,1760196639881,-500.0,0.00024657,9]
[390890186,1760196639892,-500.0,0.00024657,9]
[390890187,1760196639902,-500.0,0.00024657,9]
[390890188,1760196639912,-500.0,0.00024657,9]
[390890189,1760196639923,-500.0,0.00024657,9]
[390890190,1760196639933,-500.0,0.00024657,9]
[390890191,1760196639943,-500.0,0.00024657,9]
[390890192,1760196639953,-500.0,0.00024657,9]
[390890193,1760196639964,-500.0,0.00024657,9]
[390890194,1760196639974,-520.0,0.00024657,3]
[390890195,1760196639984,-500.0,0.00024657,9]
[390890196,1760196639993,-500.0,0.00024657,9]
[390890197,1760196640003,-500.0,0.00024657,9]
[390890199,1760196640013,-500.0,0.00024657,9]
[390890201,1760196640023,-500.0,0.00024657,9]
[390890202,1760196640033,-500.0,0.00024657,9]
[390890203,1760196640043,-565.38683377,0.00024657,9]
[390890204,1760196640052,-500.0,0.00024657,9]
[390890205,1760196640062,-500.0,0.00024657,9]
[390890206,1760196640071,-500.0,0.00024657,9]
[390890207,1760196640081,-500.0,0.00024657,9]
[390890208,1760196640090,-500.0,0.00024657,9]
[390890209,1760196640100,-500.0,0.00024657,9]
[390890210,1760196640109,-413.9,0.00024657,9]
[390890211,1760196640119,-500.0,0.00024657,9]
[390890212,1760196640128,-500.0,0.00024657,9]
[390890213,1760196640137,-500.0,0.00024657,9]
[390890214,1760196640147,-500.0,0.00024657,9]
[390890215,1760196640156,-500.0,0.00024657,9]
[390890216,1760196640165,-500.0,0.00024657,9]
[390890217,1760196640175,-500.0,0.00024657,9]
[390890218,1760196640184,-500.0,0.00024657,9]
[390890219,1760196640193,-500.0,0.00024657,9]
[390890220,1760196640202,-500.0,0.00024657,9]
[390890221,1760196640213,-500.0,0.00024657,9]
[390890222,1760196640223,-500.0,0.00024657,9]
[390890223,1760196640232,-500.0,0.00024657,9]
[390890224,1760196640242,-500.0,0.00024657,9]
[390890225,1760196640251,-500.0,0.00024657,9]
[390890226,1760196640261,-500.0,0.00024657,9]
[390890227,1760196640270,-500.0,0.00024657,9]
[390890228,1760196640279,-500.0,0.00024657,9]
[390890229,1760196640292,-162.56,0.00024657,9]
[390890230,1760196640301,-500.4682584,0.00024657,9]
[390890233,1760196640312,-500.0,0.00024657,9]
[390890235,1760196640322,-500.0,0.00024657,9]
[390890237,1760196640334,-476.52011478,0.00024657,9]
[390890238,1760196640344,-500.0,0.00024657,9]
[390890240,1760196640355,-500.0,0.00024657,9]
[390890263,1760196640538,-500.0,0.00024657,9]
[390890265,1760196640548,-500.0,0.00024657,9]
[390890267,1760196640558,-500.0,0.00024657,9]
[390890269,1760196640567,-500.0,0.00024657,9]
[390890272,1760196640577,-503.04532714,0.00024657,9]
[390890274,1760196640586,-500.0,0.00024657,9]
[390890276,1760196640596,-500.0,0.00024657,9]
[390890278,1760196640605,-500.0,0.00024657,9]
[390890280,1760196640614,-500.0,0.00024657,9]
[390890281,1760196640624,-500.0,0.00024657,9]
[390890283,1760196640633,-509.19,0.00024657,9]
[390890285,1760196640643,-500.0,0.00024657,9]
[390890287,1760196640653,-500.0,0.00024657,9]
[390890289,1760196640662,-500.0,0.00024657,9]
[390890291,1760196640671,-500.0,0.00024657,9]
[390890293,1760196640681,-500.0,0.00024657,9]
[390890294,1760196640690,-356.2,0.00024657,9]
[390890295,1760196640699,-500.0,0.00024657,9]
[390890296,1760196640709,-500.0,0.00024657,9]
[390890297,1760196640718,-270.63537503,0.00024657,9]
[390890298,1760196640728,-500.0,0.00024657,9]
[390890299,1760196640738,-500.0,0.00024657,9]
[390890300,1760196640748,-500.0,0.00024657,9]
[390890301,1760196640757,-500.0,0.00024657,9]
[390890302,1760196640767,-533.28,0.00024657,9]
[390890303,1760196640776,-500.0,0.00024657,9]
[390890304,1760196640786,-534.27,0.00024657,9]
[390890305,1760196640796,-500.0,0.00024657,9]
[390890306,1760196640807,-500.0,0.00024657,9]
[390890307,1760196640817,-500.0,0.00024657,9]
[390890308,1760196640827,-500.0,0.00024657,9]
[390890309,1760196640838,-500.0,0.00024657,9]
[390890310,1760196640848,-500.0,0.00024657,9]
[390890311,1760196640859,-500.0,0.00024657,9]
[390890312,1760196640868,-500.0,0.00024657,9]
[390890313,1760196640879,-500.0,0.00024657,9]
[390890314,1760196640889,-500.0,0.00024657,9]
[390890315,1760196640899,-500.0,0.00024657,9]
[390890316,1760196640908,-500.0,0.00024657,9]
[390890317,1760196640919,-500.0,0.00024657,9]
[390890318,1760196640928,-500.0,0.00024657,9]
[390890319,1760196640938,-500.0,0.00024657,9]
[390890320,1760196640947,-500.0,0.00024657,9]
[390890321,1760196640958,-500.0,0.00024657,9]
[390890322,1760196640967,-641.54,0.00024657,9]
[390890323,1760196640977,-500.0,0.00024657,9]
[390890324,1760196640987,-500.0,0.00024657,9]
[390890325,1760196640997,-500.0,0.00024657,9]
[390890326,1760196641006,-500.0,0.00024657,9]
[390890327,1760196641016,-500.0,0.00024657,9]
[390890328,1760196641026,-500.0,0.00024657,9]
[390890329,1760196641035,-500.0,0.00024657,9]
[390890330,1760196641045,-500.0,0.00024657,9]
[390890331,1760196641055,-500.0,0.00024657,9]
[390890332,1760196641064,-500.0,0.00024657,9]
[390890333,1760196641074,-500.0,0.00024657,9]
[390890334,1760196641084,-500.0,0.00024657,9]
[390890335,1760196641094,-269.74,0.00024657,9]
[390890336,1760196641103,-500.0,0.00024657,9]
[390890337,1760196641112,-500.0,0.00024657,9]
[390890338,1760196641122,-500.0,0.00024657,9]
[390890339,1760196641131,-500.0,0.00024657,9]
[390890340,1760196641142,-500.0,0.00024657,9]
[390890341,1760196641151,-500.0,0.00024657,9]
[390890342,1760196641161,-500.0,0.00024657,9]
[390890343,1760196641171,-500.0,0.00024657,9]
[390890344,1760196641181,-364.51,0.00024657,9]
[390890345,1760196641191,-500.0,0.00024657,9]
[390890346,1760196641200,-500.0,0.00024657,9]
[390890347,1760196641210,-500.0,0.00024657,9]
[390890348,1760196641220,-500.0,0.00024657,9]
[390890349,1760196641230,-500.0,0.00024657,9]
[390890350,1760196641240,-500.0,0.00024657,9]
[390890351,1760196641251,-469.56350356,0.00024657,9]
[390890352,1760196641262,-500.0,0.00024657,9]
[390890353,1760196641273,-500.0,0.00024657,9]
[390890354,1760196641284,-500.0,0.00024657,9]
[390890355,1760196641294,-500.0,0.00024657,9]
[390890356,1760196641305,-500.0,0.00024657,9]
[390890357,1760196641315,-500.0,0.00024657,9]
[390890358,1760196641325,-606.5,0.00024657,9]
[390890359,1760196641335,-500.0,0.00024657,9]
[390890360,1760196641344,-500.0,0.00024657,9]
[390890361,1760196641356,-500.0,0.00024657,9]
[390890362,1760196641366,-500.0,0.00024657,9]
[390890363,1760196641375,-251.88108813,0.00024657,9]
[390890364,1760196641385,-500.0,0.00024657,9]
[390890365,1760196641395,-500.0,0.00024657,9]
[390890366,1760196641404,-500.0,0.00024657,9]
[390890367,1760196641415,-542.6,0.00024657,9]
[390890368,1760196641424,-500.0,0.00024657,9]
[390890369,1760196641433,-500.0,0.00024657,9]
[390890370,1760196641443,-500.0,0.00024657,9]
[390890371,1760196641452,-500.0,0.00024657,9]
[390890372,1760196641462,-500.0,0.00024657,9]
[390890373,1760196641472,-500.0,0.00024657,9]
[390890374,1760196641481,-500.0,0.00024657,9]
[390890375,1760196641491,-500.0,0.00024657,9]
[390890376,1760196641501,-500.0,0.00024657,9]
[390890377,1760196641510,-500.0,0.00024657,9]
[390890378,1760196641520,-280.4,0.00024657,9]
[390890379,1760196641530,-500.0,0.00024657,9]
[390890380,1760196641540,-500.0,0.00024657,9]
[390890381,1760196641550,-500.0,0.00024657,9]
[390890382,1760196641560,-500.0,0.00024657,9]
[390890383,1760196641571,-500.0,0.00024657,9]
[390890384,1760196641580,-500.0,0.00024657,9]
[390890385,1760196641590,-500.0,0.00024657,9]
[390890386,1760196641599,-500.0,0.00024657,9]
[390890387,1760196641608,-500.0,0.00024657,9]
[390890388,1760196641618,-500.0,0.00024657,9]
[390890389,1760196641628,-500.0,0.00024657,9]
[390890390,1760196641638,-500.0,0.00024657,9]
[390890391,1760196641647,-500.0,0.00024657,9]
[390890392,1760196641657,-500.0,0.00024657,9]
[390890393,1760196641667,-500.0,0.00024657,9]
[390890394,1760196641676,-500.0,0.00024657,9]
[390890395,1760196641686,-500.0,0.00024657,9]
[390890396,1760196641695,-500.0,0.00024657,9]
[390890397,1760196641704,-398.35537494,0.00024657,9]
[390890398,1760196641713,-500.0,0.00024657,9]
[390890399,1760196641723,-500.0,0.00024657,9]
[390890400,1760196641733,-513.48,0.00024657,9]
[390890401,1760196641742,-500.0,0.00024657,9]
[390890402,1760196641752,-500.0,0.00024657,9]
[390890403,1760196641762,-500.0,0.00024657,9]
[390890404,1760196641771,-500.0,0.00024657,9]
[390890405,1760196641780,-500.0,0.00024657,9]
[390890406,1760196641789,-500.0,0.00024657,9]
[390890407,1760196641799,-500.0,0.00024657,9]
[390890408,1760196641808,-500.0,0.00024657,9]
[390890409,1760196641817,-500.0,0.00024657,9]
[390890410,1760196641826,-500.0,0.00024657,9]
[390890411,1760196641836,-500.0,0.00024657,9]
[390890412,1760196641845,-500.0,0.00024657,9]
[390890413,1760196641855,-360.93,0.00024657,9]
[390890414,1760196641865,-500.0,0.00024657,9]
[390890415,1760196641875,-500.0,0.00024657,5]
[390890416,1760196641885,-500.0,0.00024657,9]
[390890417,1760196641894,-500.0,0.00024657,9]
[390890418,1760196641903,-500.0,0.00024657,9]
[390890419,1760196641913,-500.0,0.00024657,9]
[390890420,1760196641922,-500.0,0.00024657,9]
[390890421,1760196641931,-500.0,0.00024657,9]
[390890422,1760196641941,-500.29995664,0.00024657,9]
[390890423,1760196641950,-500.0,0.00024657,9]
[390890424,1760196641959,-420.14,0.00024657,9]
[390890425,1760196641968,-500.0,0.00024657,9]
[390890426,1760196641978,-500.0,0.00024657,9]
[390890427,1760196641987,-500.0,0.00024657,9]
[390890428,1760196641996,-500.0,0.00024657,9]
[390890429,1760196642005,-500.0,0.00024657,9]
[390890430,1760196642015,-500.0,0.00024657,9]
[390890431,1760196642024,-500.0,0.00024657,9]
[390890432,1760196642033,-500.0,0.00024657,9]
[390890433,1760196642042,-279.95,0.00024657,9]
[390890434,1760196642051,-500.0,0.00024657,9]
[390890435,1760196642061,-500.0,0.00024657,9]
[390890436,1760196642071,-359.52,0.00024657,9]
[390890437,1760196642080,-500.0,0.00024657,9]
[390890438,1760196642090,-500.0,0.00024657,9]
[390890439,1760196642099,-500.0,0.00024657,9]
[390890440,1760196642109,-500.0,0.00024657,9]
[390890441,1760196642119,-500.0,0.00024657,9]
[390890442,1760196642128,-500.0,0.00024657,9]
[390890443,1760196642139,-500.0,0.00024657,9]
[390890444,1760196642149,-598.12305508,0.00024657,9]
[390890445,1760196642158,-505.1,0.00024657,9]
[390890446,1760196642168,-500.0,0.00024657,9]
[390890447,1760196642178,-500.0,0.00024657,9]
[390890448,1760196642187,-500.0,0.00024657,9]
[390890449,1760196642197,-593.93,0.00024657,9]
[390890450,1760196642207,-500.0,0.00024657,9]
[390890451,1760196642216,-313.21,0.00024657,9]
[390890452,1760196642225,-500.0,0.00024657,9]
[390890453,1760196642234,-500.0,0.00024657,9]
[390890454,1760196642246,-500.0,0.00024657,9]
[390890455,1760196642255,-500.0,0.00024657,9]
[390890456,1760196642264,-500.0,0.00024657,9]
[390890457,1760196642274,-166.8956664,0.00024657,9]
[390890458,1760196642285,-500.0,0.00024657,9]
[390890459,1760196642295,-500.0,0.00024657,9]
[390890460,1760196642304,-647.07,0.00024657,9]
[390890461,1760196642313,-500.0,0.00024657,9]
[390890462,1760196642322,-500.0,0.00024657,9]
[390890463,1760196642332,-500.0,0.00024657,9]
[390890464,1760196642342,-500.0,0.00024657,9]
[390890465,1760196642351,-500.0,0.00024657,9]
[390890466,1760196642362,-500.0,0.00024657,9]
[390890467,1760196642371,-500.0,0.00024657,9]
[390890468,1760196642381,-500.0,0.00024657,9]
[390890469,1760196642392,-553.79,0.00024657,9]
[390890470,1760196642402,-500.0,0.00024657,9]
[390890471,1760196642412,-500.0,0.00024657,9]
[390890472,1760196642422,-500.0,0.00024657,9]
[390890473,1760196642432,-561.72,0.00024657,9]
[390890474,1760196642442,-500.0,0.00024657,9]
[390890475,1760196642451,-500.0,0.00024657,9]
[390890476,1760196642460,-500.0,0.00024657,5]
[390890477,1760196642470,-500.0,0.00024657,9]
[390890478,1760196642479,-500.0,0.00024657,9]
[390890479,1760196642488,-152.816439,0.00024657,9]
[390890480,1760196642498,-500.0,0.00024657,9]
[390890481,1760196642507,-500.0,0.00024657,9]
[390890482,1760196642516,-500.0,0.00024657,9]
[390890483,1760196642525,-572.95,0.00024657,9]
[390890484,1760196642535,-500.0,0.00024657,9]
[390890485,1760196642545,-500.0,0.00024657,9]
[390890486,1760196642555,-500.0,0.00024657,9]
[390890487,1760196642564,-500.0,0.00024657,9]
[390890488,1760196642574,-500.0,0.00024657,9]
[390890489,1760196642583,-500.0,0.00024657,9]
[390890490,1760196642592,-500.0,0.00024657,9]
[390890491,1760196642601,-500.0,0.00024657,9]
[390890492,1760196642610,-500.0,0.00024657,9]
[390890493,1760196642620,-595.82,0.00024657,9]
[390890494,1760196642629,-500.0,0.00024657,9]
[390890495,1760196642639,-500.0,0.00024657,9]
[390890496,1760196642648,-500.0,0.00024657,9]
[390890497,1760196642658,-500.0,0.00024657,9]
[390890498,1760196642667,-500.0,0.00024657,9]
[390890499,1760196642677,-500.0,0.00024657,9]
[390890500,1760196642686,-500.0,0.00024657,9]
[390890501,1760196642696,-520.6834087,0.00024657,9]
[390890502,1760196642705,-500.0,0.00024657,9]
[390890503,1760196642715,-500.0,0.00024657,9]
[390890504,1760196642725,-219.36,0.00024657,9]
[390890505,1760196642734,-500.0,0.00024657,9]
[390890506,1760196642743,-500.0,0.00024657,9]
[390890507,1760196642752,-500.0,0.00024657,9]
[390890508,1760196642761,-500.0,0.00024657,9]
[390890509,1760196642771,-500.0,0.00024657,9]
[390890510,1760196642780,-500.0,0.00024657,9]
[390890511,1760196642789,-161.96,0.00024657,9]
[390890512,1760196642799,-500.0,0.00024657,9]
[390890513,1760196642808,-500.0,0.00024657,9]
[390890514,1760196642818,-500.0,0.00024657,9]
[390890515,1760196642828,-500.0,0.00024657,9]
[390890516,1760196642839,-500.0,0.00024657,9]
[390890517,1760196642851,-500.0,0.00024657,9]
[390890518,1760196642860,-318.39,0.00024657,9]
[390890519,1760196642870,-479.0,0.00024657,9]
[390890520,1760196642879,-500.0,0.00024657,9]
[390890521,1760196642889,-500.0,0.00024657,9]
[390890522,1760196642899,-500.0,0.00024657,9]
[390890523,1760196642908,-500.0,0.00024657,9]
[390890524,1760196642918,-500.0,0.00024657,9]
[390890525,1760196642928,-500.0,0.00024657,9]
[390890526,1760196642938,-500.0,0.00024657,9]
[390890527,1760196642978,-299.04,0.00024657,9]